bitfinex-derivatives/quotes_BTCF0:USTF0_20260315
["timestamp","ask_amount","ask_price","bid_price","bid_amount"]
[1773610688930,0.0376207,72187.0,72168.0,0.041563]
[1773610689139,0.0376207,72187.0,72169.0,0.0014]
[1773610689332,0.04295,72192.0,72174.0,0.041559]
[1773610689535,0.0376207,72203.0,72170.0,0.0387396]
[1773610689744,0.0376207,72201.0,72178.0,0.041557]
[1773610689926,0.04929938,72204.0,72179.0,0.0014]
[1773610689927,0.0376207,72199.0,72179.0,0.0014]
[1773610690134,0.001,72187.0,72180.0,0.0014]
[1773610690330,0.001,72187.0,72181.0,0.0014]
[1773610690733,0.0791677,72197.0,72181.0,0.0014]
[1773610691133,0.0791677,72197.0,72182.0,0.041555]
[1773610691134,0.0376207,72197.0,72182.0,0.041555]
[1773610691434,0.0376207,72197.0,72181.0,0.0014]
[1773610691739,0.001,72201.0,72187.0,0.041552]
[1773610691941,0.001,72201.0,72181.0,0.0014]
[1773610692333,0.041542,72204.0,72181.0,0.0014]
[1773610692334,0.041541,72206.0,72181.0,0.0014]
[1773610692535,0.04154,72209.0,72194.0,0.041548]
[1773610692935,0.04154,72209.0,72193.0,0.0014]
[1773610692936,0.041536,72215.0,72193.0,0.0014]
[1773610693139,0.0376207,72220.0,72201.0,0.041544]
[1773610693328,0.041536,72216.0,72195.0,0.041547]
[1773610693532,0.041536,72216.0,72201.0,0.041544]
[1773610693734,0.041537,72214.0,72198.0,0.041545]
[1773610693942,0.0376207,72213.0,72198.0,0.041545]
[1773610694341,0.0376207,72218.0,72193.0,0.0014]
[1773610694645,0.0014,72219.0,72177.0,0.16207542]
[1773610694646,0.0376207,72204.0,72177.0,0.16207542]
[1773610694942,0.0376207,72204.0,72191.0,0.04155]
[1773610695145,0.0376207,72204.0,72190.0,0.0014]
[1773610695340,0.0376207,72204.0,72191.0,0.0014]
[1773610695537,0.0376207,72204.0,72191.0,0.042949]
[1773610695742,0.0376207,72200.0,72186.0,0.041552]
[1773610696137,0.0376207,72200.0,72187.0,0.31183168]
[1773610696138,0.041546,72199.0,72187.0,0.31183168]
[1773610696345,0.0376207,72198.0,72185.0,0.041553]
[1773610696841,0.0376207,72198.0,72182.0,0.041554]
[1773610697042,0.0376207,72198.0,72183.0,0.31185499]
[1773610697231,0.0376207,72197.0,72184.0,0.31185499]
[1773610697436,0.0376207,72194.0,72185.0,0.26317294]
[1773610697638,0.0376207,72191.0,72181.0,0.0006927]
[1773610698241,0.0376207,72190.0,72180.0,0.16207542]
[1773610698438,0.0376207,72189.0,72179.0,0.11837632]
[1773610698641,0.0376207,72189.0,72168.0,0.23840949]
[1773610698846,0.0014,72195.0,72168.0,0.0014]
[1773610698847,0.0376207,72186.0,72168.0,0.0014]
[1773610699147,0.0014,72185.0,72174.0,0.041559]
[1773610699343,0.0376207,72184.0,72172.0,0.041561]
[1773610699734,0.0376207,72184.0,72162.0,0.23980949]
[1773610699735,0.0376207,72184.0,72173.0,0.04156]
[1773610699934,0.08624444,72210.0,72162.0,0.0014]
[1773610699935,0.1387,72232.0,72172.0,0.23840949]
[1773610700134,0.0376207,72241.0,72194.0,0.0387396]
[1773610700438,0.0014,72242.0,72216.0,0.0387396]
[1773610700637,0.0014,72241.0,72225.0,0.04153]
[1773610701147,0.001,72232.0,72226.0,0.041529]
[1773610701345,0.0024,72232.0,72226.0,0.041529]
[1773610701540,0.0014,72234.0,72216.0,0.0387396]
[1773610701735,0.041519,72245.0,72215.0,0.0387396]
[1773610701939,0.0014,72244.0,72215.0,0.0387396]
[1773610702240,0.0014,72244.0,72231.0,0.041526]
[1773610702436,0.0014,72244.0,72215.0,0.0387396]
[1773610702437,0.05530545,72295.0,72232.0,0.04279939]
[1773610702636,0.05530545,72295.0,72243.0,0.04152]
[1773610702637,0.0425318,72269.0,72243.0,0.04152]
[1773610702840,0.041515,72252.0,72233.0,0.0014]
[1773610703034,0.041519,72246.0,72225.0,0.0014]
[1773610703234,0.0014,72245.0,72225.0,0.0014]
[1773610703540,0.04152,72243.0,72228.0,0.041528]
[1773610703940,0.0425318,72250.0,72219.0,0.04279939]
[1773610704148,0.04152,72243.0,72219.0,0.04279939]
[1773610704650,0.0014,72242.0,72219.0,0.04279939]
[1773610704847,0.0439318,72242.0,72213.0,0.04279939]
[1773610705050,0.0425318,72241.0,72220.0,0.041533]
[1773610705251,0.0014,72242.0,72215.0,0.041535]
[1773610705252,0.041528,72229.0,72215.0,0.041535]
[1773610705438,0.0014,72228.0,72217.0,0.041535]
[1773610705749,0.0439318,72227.0,72210.0,0.041539]
[1773610705952,0.041531,72224.0,72200.0,0.04279939]
[1773610706646,0.041531,72224.0,72209.0,0.041539]
[1773610706840,0.041531,72224.0,72211.0,0.041538]
[1773610707546,0.041531,72224.0,72209.0,0.041539]
[1773610707749,0.041531,72224.0,72211.0,0.041538]
[1773610708550,0.0014,72223.0,72200.0,0.04279939]
[1773610708746,0.0014,72222.0,72211.0,0.041538]
[1773610708941,0.0014,72223.0,72211.0,0.041538]
[1773610709139,0.0014,72222.0,72211.0,0.041538]
[1773610709343,0.0014,72226.0,72212.0,0.041537]
[1773610709543,0.0014,72225.0,72213.0,0.3117199]
[1773610709742,0.0014,72225.0,72210.0,0.041539]
[1773610709952,0.042931,72225.0,72211.0,0.31172289]
[1773610710251,0.041531,72224.0,72212.0,0.31172289]
[1773610710449,0.041531,72224.0,72211.0,0.001]
[1773610710651,0.0014,72223.0,72212.0,0.31173377]
[1773610710852,0.0014,72223.0,72210.0,0.041539]
[1773610711148,0.0014,72223.0,72211.0,0.31173365]
[1773610711456,0.041529,72227.0,72212.0,0.31173365]
[1773610711759,0.0014,72226.0,72213.0,0.35327065]
[1773610712051,0.0014,72225.0,72214.0,0.31173365]
[1773610712253,0.0014,72225.0,72215.0,0.31173365]
[1773610712451,0.0014,72225.0,72208.0,0.08433939]
[1773610712653,0.0425318,72221.0,72209.0,0.31172063]
[1773610712854,0.041534,72218.0,72192.0,0.04279939]
[1773610713049,0.0014,72217.0,72204.0,0.041542]
[1773610713250,0.041536,72216.0,72205.0,0.31176176]
[1773610713448,0.041536,72216.0,72206.0,0.31176176]
[1773610713654,0.041536,72216.0,72201.0,0.041544]
[1773610713858,0.041536,72216.0,72202.0,0.31176218]
[1773610714150,0.0425318,72216.0,72203.0,0.31176218]
[1773610714352,0.0425318,72216.0,72195.0,0.041547]
[1773610714771,0.04154,72209.0,72195.0,0.041547]
[1773610714993,0.04154,72209.0,72187.0,0.00144]
[1773610714994,0.0439318,72209.0,72187.0,0.041552]
[1773610715151,0.041542,72205.0,72185.0,0.00144]
[1773610715353,0.0425318,72208.0,72191.0,0.041549]
[1773610715551,0.0425318,72204.0,72187.0,0.00144]
[1773610716153,0.0425318,72204.0,72180.0,0.04279939]
[1773610716154,0.0014,72203.0,72180.0,0.04279939]
[1773610716351,0.0425318,72200.0,72184.0,0.041554]
[1773610716557,0.0425318,72198.0,72182.0,0.041554]
[1773610716763,0.041547,72196.0,72184.0,0.041554]
[1773610717061,0.0014,72195.0,72184.0,0.041554]
[1773610717263,0.0014,72194.0,72184.0,0.041554]
[1773610717456,0.0014,72193.0,72181.0,0.041555]
[1773610717658,0.0014,72193.0,72176.0,0.00144]
[1773610717659,0.041546,72197.0,72183.0,0.041554]
[1773610717850,0.0014,72196.0,72183.0,0.041554]
[1773610718056,0.0014,72195.0,72183.0,0.041554]
[1773610718253,0.041546,72197.0,72183.0,0.041554]
[1773610718456,0.00150223,72196.0,72184.0,0.041553]
[1773610718663,0.00010223,72196.0,72184.0,0.041553]
[1773610718860,0.0014,72195.0,72184.0,0.041553]
[1773610719163,0.0014,72194.0,72184.0,0.041553]
[1773610719459,0.00010223,72196.0,72184.0,0.041553]
[1773610719959,0.0014,72195.0,72184.0,0.041553]
[1773610720163,0.00010223,72196.0,72184.0,0.041553]
[1773610720554,0.0014,72195.0,72183.0,0.041554]
[1773610720965,0.0014,72195.0,72180.0,0.04279939]
[1773610721463,0.0014,72194.0,72180.0,0.04279939]
[1773610721664,0.0014,72194.0,72183.0,0.041554]
[1773610721861,0.0014,72193.0,72184.0,0.041553]
[1773610722162,0.0014,72192.0,72184.0,0.041553]
[1773610722365,0.0014,72192.0,72180.0,0.04279939]
[1773610722366,0.00010223,72196.0,72186.0,0.041553]
[1773610722563,0.00010223,72196.0,72184.0,0.041553]
[1773610722965,0.042948,72195.0,72182.0,0.041555]
[1773610723166,0.0014,72194.0,72183.0,0.041554]
[1773610723366,0.0014,72194.0,72184.0,0.041553]
[1773610723762,0.00010223,72196.0,72184.0,0.041553]
[1773610723963,0.0014,72193.0,72180.0,0.04279939]
[1773610724163,0.0014,72193.0,72184.0,0.041553]
[1773610724565,0.04164923,72196.0,72184.0,0.041553]
[1773610724756,0.00010223,72196.0,72185.0,0.041553]
[1773610724961,0.00010223,72196.0,72185.0,0.08435239]
[1773610725166,0.00150223,72196.0,72185.0,0.041553]
[1773610725365,0.041549,72193.0,72177.0,0.04279939]
[1773610725680,0.041549,72193.0,72181.0,0.041555]
[1773610725863,0.041548,72195.0,72182.0,0.041555]
[1773610726173,0.0014,72194.0,72183.0,0.041554]
[1773610726370,0.0014,72194.0,72184.0,0.35341006]
[1773610726572,0.04164923,72196.0,72185.0,0.31185706]
[1773610726881,0.0014,72195.0,72186.0,0.31185706]
[1773610727172,0.0014,72195.0,72187.0,0.31185706]
[1773610727359,0.0014,72195.0,72188.0,0.31185706]
[1773610727677,0.0014,72204.0,72191.0,0.041549]
[1773610727867,0.0014,72203.0,72191.0,0.08434839]
[1773610728066,0.0014,72202.0,72191.0,0.08434839]
[1773610728269,0.041543,72202.0,72191.0,0.08434939]
[1773610728574,7.757e-05,72201.0,72191.0,0.04279939]
[1773610729967,7.757e-05,72201.0,72192.0,0.041549]
[1773610731665,7.757e-05,72201.0,72190.0,0.04155]
[1773610731963,0.04162157,72201.0,72191.0,0.31182552]
[1773610732164,0.04162157,72201.0,72189.0,0.041551]
[1773610732470,0.04162157,72201.0,72190.0,0.31182925]
[1773610732670,0.041545,72200.0,72191.0,0.31182925]
[1773610732868,0.04399291,72201.0,72178.0,0.24522578]
[1773610733056,0.041546,72198.0,72180.0,0.042946]
[1773610733372,0.041546,72198.0,72179.0,0.31182887]
[1773610733373,0.0014,72199.0,72182.0,0.042946]
[1773610733667,0.0014,72199.0,72183.0,0.31182887]
[1773610733866,0.042945,72199.0,72185.0,0.041553]
[1773610734067,0.041545,72199.0,72186.0,0.35338087]
[1773610734268,0.041545,72199.0,72187.0,0.31182887]
[1773610734572,0.042945,72199.0,72188.0,0.31182887]
[1773610734763,0.042945,72199.0,72189.0,0.31182887]
[1773610734965,0.042945,72199.0,72186.0,0.041552]
[1773610735165,0.04162157,72201.0,72190.0,0.042946]
[1773610735466,7.757e-05,72201.0,72190.0,0.04155]
[1773610735663,7.757e-05,72201.0,72191.0,0.041549]
[1773610735869,7.757e-05,72201.0,72189.0,0.041551]
[1773610736172,0.041545,72200.0,72186.0,0.042946]
[1773610736362,0.041545,72200.0,72187.0,0.31183018]
[1773610736563,0.041545,72200.0,72188.0,0.31183018]
[1773610736773,0.041545,72200.0,72189.0,0.31183018]
[1773610736969,0.041545,72200.0,72186.0,0.084498]
[1773610737169,0.041545,72200.0,72188.0,0.041551]
[1773610737570,0.041545,72200.0,72188.0,0.084497]
[1773610737873,7.757e-05,72201.0,72188.0,0.042946]
[1773610738266,7.757e-05,72201.0,72184.0,0.042946]
[1773610739074,7.757e-05,72201.0,72190.0,0.042946]
[1773610739274,0.04162157,72201.0,72190.0,0.042946]
[1773610739774,0.04162157,72201.0,72189.0,0.04155]
[1773610740165,0.041545,72200.0,72188.0,0.041551]
[1773610740467,0.04391534,72198.0,72184.0,0.041553]
[1773610740667,0.04391534,72198.0,72183.0,0.0014]
[1773610740867,0.041545,72199.0,72186.0,0.041552]
[1773610741264,7.757e-05,72201.0,72192.0,0.041549]
[1773610741465,0.04391534,72212.0,72189.0,0.042946]
[1773610741665,0.0014,72214.0,72199.0,0.041545]
[1773610741963,0.041539,72210.0,72199.0,0.041545]
[1773610742368,0.04391534,72227.0,72205.0,0.042946]
[1773610742574,0.0014,72226.0,72207.0,0.042946]
[1773610742773,0.04153,72225.0,72208.0,0.042946]
[1773610743074,0.041531,72224.0,72212.0,0.041537]
[1773610743275,0.041531,72223.0,72212.0,0.041537]
[1773610743571,0.04391534,72233.0,72214.0,0.041536]
[1773610743765,0.0014,72232.0,72214.0,0.041536]
[1773610743961,0.0014,72232.0,72215.0,0.041536]
[1773610744161,0.04153,72226.0,72213.0,0.041537]
[1773610744366,0.0014,72225.0,72213.0,0.041537]
[1773610744771,0.042931,72225.0,72213.0,0.041537]
[1773610745188,0.71973489,72330.0,72207.0,0.0014]
[1773610745189,0.04531534,72237.0,72214.0,0.042946]
[1773610745369,0.0014,72236.0,72214.0,0.042946]
[1773610745673,0.04151,72261.0,72214.0,0.042946]
[1773610745674,0.04391534,72234.0,72214.0,0.042946]
[1773610745878,0.04391534,72234.0,72214.0,0.044346]
[1773610746073,0.0014,72233.0,72214.0,0.044346]
[1773610746877,0.04531534,72233.0,72214.0,0.0014]
[1773610747080,0.0014,72232.0,72214.0,0.0014]
[1773610747273,0.0014,72231.0,72214.0,0.0014]
[1773610747577,0.041529,72228.0,72214.0,0.042936]
[1773610747972,0.0014,72229.0,72214.0,0.0014]
[1773610748172,0.042928,72229.0,72214.0,0.0014]
[1773610748479,0.04391534,72236.0,72214.0,0.0014]
[1773610748480,0.041527,72230.0,72216.0,0.041535]
[1773610748874,0.041528,72229.0,72216.0,0.041535]
[1773610749069,0.041528,72229.0,72215.0,0.042946]
[1773610749281,0.041528,72229.0,72218.0,0.041534]
[1773610749579,0.042927,72231.0,72218.0,0.041534]
[1773610749779,0.04391534,72246.0,72222.0,0.041532]
[1773610749978,0.04391534,72246.0,72223.0,0.042946]
[1773610750177,0.0014,72248.0,72238.0,0.041523]
[1773610750479,0.0014,72248.0,72236.0,0.041524]
[1773610750776,0.042917,72248.0,72234.0,0.041525]
[1773610750975,0.041517,72248.0,72234.0,0.041525]
[1773610751279,0.042917,72248.0,72234.0,0.041525]
[1773610751769,0.041518,72247.0,72234.0,0.041525]
[1773610752578,0.041519,72246.0,72232.0,0.084472]
[1773610753583,0.041519,72246.0,72232.0,0.041526]
[1773610753878,0.041517,72248.0,72232.0,0.042946]
[1773610754876,0.041517,72248.0,72235.0,0.041524]
[1773610755076,0.042917,72248.0,72235.0,0.041524]
[1773610755277,0.3048,72282.0,72232.0,0.042946]
[1773610755278,0.0014,72252.0,72232.0,0.042946]
[1773610755581,0.04391534,72268.0,72235.0,0.042946]
[1773610755780,0.041513,72255.0,72242.0,0.04152]
[1773610755980,0.0014,72254.0,72242.0,0.04152]
[1773610756179,0.041512,72257.0,72244.0,0.041519]
[1773610756382,0.0014,72255.0,72244.0,0.041519]
[1773610756880,0.08682834,72256.0,72243.0,0.04152]
[1773610757776,0.042913,72256.0,72243.0,0.04152]
[1773610757981,0.04391534,72268.0,72245.0,0.041518]
[1773610758182,0.15967924,72271.0,72245.0,0.041518]
[1773610758183,0.04391534,72266.0,72245.0,0.041518]
[1773610758686,0.041512,72257.0,72245.0,0.041518]
[1773610759075,0.041513,72256.0,72243.0,0.04152]
[1773610759278,0.041513,72256.0,72240.0,0.042946]
[1773610759478,0.041513,72255.0,72243.0,0.04152]
[1773610759785,0.04391534,72257.0,72239.0,0.0014]
[1773610759986,0.04391534,72256.0,72243.0,0.041519]
[1773610760281,0.04391534,72256.0,72239.0,0.0014]
[1773610760478,0.0014,72257.0,72239.0,0.044346]
[1773610760679,0.042912,72257.0,72239.0,0.044346]
[1773610760881,0.0014,72257.0,72239.0,0.044346]
[1773610761080,0.042912,72257.0,72244.0,0.041519]
[1773610761286,0.042912,72257.0,72245.0,0.041518]
[1773610762381,0.0014,72257.0,72239.0,0.044346]
[1773610762585,0.04190375,72257.0,72243.0,0.04152]
[1773610762789,0.04050375,72254.0,72243.0,0.04152]
[1773610763080,0.04050375,72254.0,72246.0,0.041518]
[1773610763279,0.04190375,72263.0,72246.0,0.041518]
[1773610763480,0.04190375,72263.0,72240.0,0.04279161]
[1773610763684,0.04050375,72262.0,72240.0,0.04279161]
[1773610763987,0.04050375,72260.0,72249.0,0.041516]
[1773610764189,0.04190375,72259.0,72249.0,0.041516]
[1773610764376,0.04190375,72259.0,72247.0,0.041517]
[1773610765384,0.08341475,72259.0,72247.0,0.041517]
[1773610765780,0.08341475,72259.0,72239.0,0.0014]
[1773610765781,0.04050375,72253.0,72239.0,0.0014]
[1773610766281,0.04050375,72257.0,72239.0,0.0014]
[1773610766482,0.08201575,72257.0,72244.0,0.041519]
[1773610766682,0.041513,72256.0,72244.0,0.041519]
[1773610766885,0.0014,72255.0,72245.0,0.041518]
[1773610767081,0.041512,72257.0,72245.0,0.041518]
[1773610767583,0.0014,72257.0,72243.0,0.041519]
[1773610767785,0.041513,72256.0,72244.0,0.041519]
[1773610768184,0.042913,72256.0,72244.0,0.041519]
[1773610768586,0.0014,72256.0,72246.0,0.041518]
[1773610768776,0.0014,72256.0,72244.0,0.041519]
[1773610769488,0.041515,72253.0,72226.0,0.162871]
[1773610769787,0.04050375,72232.0,72216.0,0.0014]
[1773610770090,0.04050375,72230.0,72215.0,0.0014]
[1773610770288,0.0014,72232.0,72212.0,0.0014]
[1773610770289,0.04050375,72227.0,72212.0,0.0014]
[1773610770484,0.04050375,72227.0,72216.0,0.041535]
[1773610770682,0.04050375,72227.0,72218.0,0.041534]
[1773610770889,0.04050375,72227.0,72216.0,0.041535]
[1773610771088,0.04050375,72227.0,72217.0,0.041534]
[1773610771490,0.08203275,72227.0,72215.0,0.041536]
[1773610771788,0.041528,72229.0,72216.0,0.041535]
[1773610771988,0.04050375,72228.0,72216.0,0.041535]
[1773610772388,0.041529,72227.0,72214.0,0.041536]
[1773610772584,0.04050375,72226.0,72214.0,0.041536]
[1773610772790,0.041529,72227.0,72214.0,0.041536]
[1773610772791,0.04050375,72224.0,72214.0,0.041536]
[1773610772991,0.04050375,72224.0,72212.0,0.041537]
[1773610773391,0.04050375,72223.0,72212.0,0.041537]
[1773610773885,0.08203675,72221.0,72201.0,0.00149793]
[1773610774086,0.08203675,72221.0,72202.0,0.0014]
[1773610774296,0.04050375,72218.0,72202.0,0.0014]
[1773610774498,0.04050375,72216.0,72202.0,0.0014]
[1773610774795,0.04190375,72216.0,72201.0,0.00149793]
[1773610774991,0.04050375,72213.0,72192.0,0.03429954]
[1773610775211,0.04050375,72213.0,72203.0,0.041542]
[1773610775712,0.04050375,72213.0,72201.0,0.041544]
[1773610776016,9.793e-05,72212.0,72201.0,0.041544]
[1773610778107,0.04060168,72212.0,72201.0,0.041544]
[1773610778306,0.04060168,72212.0,72197.0,0.0014]
[1773610778507,0.04060168,72212.0,72197.0,0.04419161]
[1773610778508,9.793e-05,72212.0,72197.0,0.04419161]
[1773610778916,9.793e-05,72212.0,72197.0,0.0014]
[1773610779415,9.793e-05,72212.0,72202.0,0.041543]
[1773610779617,9.793e-05,72212.0,72203.0,0.041543]
[1773610779806,9.793e-05,72212.0,72201.0,0.041544]
[1773610780007,9.793e-05,72212.0,72203.0,0.041542]
[1773610780413,9.793e-05,72212.0,72204.0,0.037542]
[1773610782210,9.793e-05,72212.0,72193.0,0.04279161]
[1773610782410,9.793e-05,72212.0,72202.0,0.041543]
[1773610782717,0.04060168,72212.0,72200.0,0.041544]
[1773610783016,0.04050375,72211.0,72199.0,0.041545]
[1773610783214,0.04050375,72210.0,72197.0,0.041546]
[1773610783608,0.0014,72215.0,72192.0,0.0014]
[1773610783609,0.08204475,72207.0,72192.0,0.0014]
[1773610783912,0.04050375,72204.0,72192.0,0.041549]
[1773610784117,9.793e-05,72203.0,72192.0,0.041549]
[1773610785014,9.793e-05,72203.0,72193.0,0.041548]
[1773610785414,0.04060168,72203.0,72189.0,0.000509]
[1773610785614,0.04050375,72202.0,72179.0,0.04279161]
[1773610785813,0.04050375,72202.0,72174.0,0.24522578]
[1773610785814,0.041549,72193.0,72180.0,0.042955]
[1773610786014,0.04050375,72191.0,72178.0,0.041557]
[1773610786315,0.04050375,72191.0,72172.0,0.04156]
[1773610786706,0.04050375,72191.0,72168.0,0.0014]
[1773610786910,0.08205675,72186.0,72173.0,0.04156]
[1773610787113,0.00149793,72185.0,72172.0,0.04156]
[1773610787821,0.04305193,72185.0,72169.0,0.042962]
[1773610788021,0.04305193,72185.0,72172.0,0.041561]
[1773610788022,0.04050375,72184.0,72172.0,0.041561]
[1773610788217,0.04050375,72184.0,72173.0,0.04156]
[1773610788515,0.08205775,72184.0,72172.0,0.04156]
[1773610788721,0.08205775,72184.0,72169.0,0.0014]
[1773610788722,0.04050375,72181.0,72169.0,0.041562]
[1773610789115,0.04050375,72183.0,72162.0,0.04435563]
[1773610789315,0.04050375,72182.0,72163.0,0.0014]
[1773610789514,0.04050375,72181.0,72169.0,0.041562]
[1773610789716,0.041558,72177.0,72162.0,0.00016402]
[1773610789919,0.04190375,72176.0,72162.0,0.00016402]
[1773610790123,9.793e-05,72175.0,72162.0,0.00016402]
[1773610790320,9.793e-05,72175.0,72163.0,0.041566]
[1773610790522,9.793e-05,72175.0,72164.0,0.041565]
[1773610790721,0.04050375,72174.0,72163.0,0.041566]
[1773610790922,0.04050375,72173.0,72148.0,0.04279161]
[1773610791122,0.04156,72174.0,72160.0,0.041567]
[1773610791318,0.041561,72172.0,72158.0,0.041568]
[1773610791619,0.04050375,72172.0,72159.0,0.041568]
[1773610792622,0.041565,72165.0,72148.0,0.0014]
[1773610792812,0.04347117,72164.0,72148.0,0.0014]
[1773610793017,0.08503717,72164.0,72151.0,0.041573]
[1773610793218,0.04191874,72163.0,72151.0,0.041573]
[1773610793418,0.08348674,72160.0,72146.0,0.041575]
[1773610793619,0.04191874,72159.0,72146.0,0.041575]
[1773610793927,0.04171641,72158.0,72147.0,0.00016402]
[1773610794122,0.041571,72154.0,72141.0,0.041578]
[1773610794424,0.041574,72149.0,72139.0,0.00016402]
[1773610794725,0.041573,72151.0,72139.0,0.00016402]
[1773610795029,0.00014156,72153.0,72139.0,0.00016402]
[1773610795030,0.0014,72150.0,72139.0,0.00016402]
[1773610796330,0.041575,72148.0,72139.0,0.00016402]
[1773610796527,0.00011601,72147.0,72139.0,0.00016402]
[1773610796926,0.04169101,72147.0,72139.0,0.00016402]
[1773610797727,0.00011601,72147.0,72139.0,0.00016402]
[1773610798114,0.00151601,72147.0,72139.0,0.00016402]
[1773610799933,0.04309101,72147.0,72139.0,0.00016402]
[1773610800132,0.00151601,72147.0,72139.0,2e-08]
[1773610801232,0.04191874,72170.0,72147.0,0.08465529]
[1773610801423,0.12781416,72190.0,72147.0,0.08465529]
[1773610801424,0.21931974,72172.0,72159.0,0.041568]
[1773610801628,0.09446902,72179.0,72151.0,0.04308029]
[1773610801629,0.0014,72171.0,72151.0,0.04308029]
[1773610801935,0.041563,72169.0,72154.0,0.041571]
[1773610802438,0.00014594,72168.0,72154.0,0.041571]
[1773610802933,0.04170994,72168.0,72154.0,0.041571]
[1773610803130,0.041564,72166.0,72154.0,0.041571]
[1773610803523,0.04191874,72165.0,72154.0,0.041571]
[1773610803728,0.041564,72167.0,72153.0,0.041571]
[1773610803928,0.041564,72166.0,72153.0,0.041571]
[1773610804131,0.0014,72165.0,72152.0,0.04308029]
[1773610804337,0.00014594,72168.0,72149.0,0.08465429]
[1773610804338,7.1e-07,72150.0,72149.0,0.08465429]
[1773610804632,0.0014,72166.0,72155.0,0.04157]
[1773610804828,0.00011907,72165.0,72153.0,0.04308029]
[1773610805030,0.042958,72177.0,72158.0,0.04308029]
[1773610805229,0.0014,72176.0,72164.0,0.041565]
[1773610805428,0.0014,72175.0,72161.0,0.04308029]
[1773610805739,0.0014,72174.0,72164.0,0.041565]
[1773610805933,0.0014,72173.0,72156.0,0.0014]
[1773610806133,0.0014,72172.0,72156.0,0.0014]
[1773610806639,0.0014,72172.0,72163.0,0.041565]
[1773610807040,0.04191874,72171.0,72156.0,0.0014]
[1773610807231,0.04191874,72169.0,72156.0,0.0014]
[1773610807535,0.041565,72164.0,72143.0,0.0014]
[1773610807733,0.041565,72164.0,72126.0,0.041587]
[1773610807734,0.04191874,72148.0,72136.0,0.041581]
[1773610807932,0.04191874,72148.0,72136.0,0.0014]
[1773610808240,0.041573,72150.0,72138.0,0.04158]
[1773610808443,0.041576,72147.0,72133.0,0.041583]
[1773610808644,0.041576,72146.0,72133.0,0.041583]
[1773610808946,0.041574,72148.0,72131.0,0.04517347]
[1773610809237,0.0014,72150.0,72131.0,0.04517347]
[1773610809238,0.0014,72150.0,72132.0,0.041584]
[1773610809447,0.041574,72149.0,72134.0,0.04308029]
[1773610809742,0.17642843,72151.0,72134.0,0.04308029]
[1773610809743,0.041575,72148.0,72135.0,0.041582]
[1773610809936,0.17642843,72151.0,72119.0,0.00013383]
[1773610809937,0.04191874,72132.0,72119.0,0.00013383]
[1773610810138,0.05255028,72149.0,72120.0,0.04448029]
[1773610810139,0.0014,72140.0,72120.0,0.04448029]
[1773610810341,0.17389638,72149.0,72124.0,0.04308029]
[1773610810526,0.041578,72143.0,72131.0,0.041584]
[1773610810726,0.0014,72148.0,72129.0,0.08466529]
[1773610810943,0.0014,72148.0,72129.0,0.04308029]
[1773610810944,0.0014,72147.0,72129.0,0.04308029]
[1773610811145,0.0014,72147.0,72135.0,0.08466129]
[1773610811336,0.0014,72147.0,72136.0,0.041581]
[1773610812431,0.0014,72147.0,72132.0,0.0014]
[1773610812432,0.042975,72148.0,72134.0,0.041582]
[1773610813230,0.041575,72148.0,72126.0,0.0014]
[1773610813439,0.042975,72148.0,72128.0,0.04308029]
[1773610813641,0.042975,72148.0,72130.0,0.04308029]
[1773610813642,0.0014,72148.0,72130.0,0.04308029]
[1773610813841,0.04331874,72148.0,72134.0,0.041582]
[1773610814236,0.042975,72147.0,72128.0,0.04308029]
[1773610814438,0.08489374,72147.0,72135.0,0.041582]
[1773610814644,0.08349374,72147.0,72135.0,0.041582]
[1773610814837,0.0014,72146.0,72135.0,0.041582]
[1773610815039,0.08489374,72147.0,72135.0,0.041582]
[1773610815228,0.17124728,72156.0,72126.0,0.0014]
[1773610815545,0.04191874,72147.0,72135.0,0.041582]
[1773610815745,0.0014,72146.0,72135.0,0.041582]
[1773610815947,0.04331874,72146.0,72135.0,0.041582]
[1773610816628,0.04191874,72145.0,72128.0,0.0014]
[1773610816832,0.08349574,72145.0,72133.0,0.041583]
[1773610817032,0.04331874,72144.0,72133.0,0.041583]
[1773610817835,0.04191874,72141.0,72130.0,0.041585]
[1773610818743,0.04191874,72141.0,72131.0,0.041584]
[1773610819253,0.04191874,72141.0,72118.0,0.0014]
[1773610819441,0.04191874,72141.0,72131.0,0.041584]
[1773610819839,0.04191874,72141.0,72110.0,0.24522578]
[1773610820043,0.04191874,72127.0,72115.0,0.041593]
[1773610820243,0.04191874,72126.0,72114.0,0.041594]
[1773610820444,0.04191874,72126.0,72104.0,0.05]
[1773610820445,0.04191874,72126.0,72115.0,0.041593]
[1773610820749,0.04191874,72125.0,72104.0,0.05]
[1773610820946,0.04207201,72124.0,72105.0,0.27953295]
[1773610821146,0.04207201,72124.0,72115.0,0.041593]
[1773610821646,0.04137725,72124.0,72115.0,0.041593]
[1773610822043,0.04137725,72124.0,72104.0,0.05]
[1773610822346,0.04137725,72124.0,72112.0,0.041595]
[1773610822545,0.04558167,72123.0,72112.0,0.041595]
[1773610822741,0.04558167,72126.0,72104.0,0.05]
[1773610823047,0.17416022,72126.0,72108.0,0.041597]
[1773610823242,0.041591,72119.0,72106.0,0.041599]
[1773610823441,0.04698167,72118.0,72104.0,0.05]
[1773610823639,0.042993,72117.0,72105.0,0.27944818]
[1773610823841,0.04558167,72114.0,72104.0,0.05]
[1773610824051,0.04558167,72112.0,72104.0,0.05]
[1773610824348,0.04558167,72109.0,72087.0,0.0014]
[1773610824651,0.04558167,72109.0,72096.0,0.041604]
[1773610824852,0.17566938,72117.0,72073.0,0.24522578]
[1773610825143,0.44382,72151.0,72128.0,0.041586]
[1773610825144,0.04558167,72148.0,72128.0,0.041586]
[1773610825344,0.041577,72143.0,72127.0,0.041586]
[1773610825551,0.04558167,72144.0,72127.0,0.041586]
[1773610825750,0.041578,72142.0,72125.0,0.042988]
[1773610826051,0.04558167,72141.0,72129.0,0.041585]
[1773610827245,0.04558167,72148.0,72128.0,0.00557353]
[1773610827451,0.04558167,72148.0,72128.0,0.05074923]
[1773610828047,0.04558167,72153.0,72129.0,0.0451757]
[1773610828247,0.04558167,72157.0,72147.0,0.041575]